Workbook

Sheet MCC Timing Calc 10+ Cummins
A1: MCC Timing Calculator for 2010+ Cummins 6.7L (Axis values change in 2012, but tables should be the same size) Created by Joe Harrell (Forum Name : WyoFreeride) If you find a problem with the Calcs, shoot me a detailed email email ( joe@307tuning.com ) and I'll get it fixed. 0 MM3 values in Torque to Fuel will cause interesting timing numbers (because you cant divide by 0) Read the directions in Col A, do what it says, and you should be ok.
A3: Follow Steps In This Column. | F3: If you want to experiment, the unprotect sheet password is in cell CR10
A4: NOTE: Axis Values are used in all table lookups and MUST match your current Table Axis. Blue Axis Values are editable and those changes will affect the timing calculation.
A5: Copy table from MCC and paste into table below. Axis values MUST match.
B6: Main Injection Pulse | X6: Main Injection Pulse (Converted Pressure Axis)
B7: mSec | C7: MM3/s | X7: mSec | Y7: MM3/s
B8: BAR | C8: 0 | D8: 1 | E8: 2 | F8: 5 | G8: 10 | H8: 20 | I8: 30 | J8: 40 | K8: 50 | L8: 60 | M8: 70 | N8: 80 | O8: 90 | P8: 105 | Q8: 120 | R8: 150 | X8: PSI | Y8: =C8 -> 0 | Z8: =D8 -> 1 | AA8: 2 | AB8: 5 | AC8: 10 | AD8: 20 | AE8: 30 | AF8: 40 | AG8: 50 | AH8: 60 | AI8: 70 | AJ8: 80 | AK8: 90 | AL8: 105 | AM8: 120 | AN8: 150
B9: 100 | C9: 0 | D9: 0.371 | E9: 0.46 | F9: 0.672 | G9: 0.759 | H9: 1.107 | I9: 1.457 | J9: 1.838 | K9: 2.25 | L9: 2.687 | M9: 3.144 | N9: 3.618 | O9: 4.105 | P9: 4.854 | Q9: 5.62 | R9: 7.152 | X9: =B9*14.5037738 -> 1450.37738 | Y9: 0 | Z9: =D9 -> 0.371 | AA9: =E9 -> 0.46 | AB9: =F9 -> 0.672 | AC9: =G9 -> 0.759 | AD9: =H9 -> 1.107 | AE9: =I9 -> 1.457 | AF9: =J9 -> 1.838 | AG9: =K9 -> 2.25 | AH9: =L9 -> 2.687 | AI9: =M9 -> 3.144 | AJ9: =N9 -> 3.618 | AK9: =O9 -> 4.105 | AL9: =P9 -> 4.854 | AM9: =Q9 -> 5.62 | AN9: =R9 -> 7.152
B10: 200 | C10: 0 | D10: 0.371 | E10: 0.46 | F10: 0.672 | G10: 0.759 | H10: 1.107 | I10: 1.457 | J10: 1.838 | K10: 2.25 | L10: 2.687 | M10: 3.144 | N10: 3.618 | O10: 4.105 | P10: 4.854 | Q10: 5.62 | R10: 7.152 | X10: 2900.75476 | Y10: 0 | Z10: 0.371 | AA10: 0.46 | AB10: 0.672 | AC10: 0.759 | AD10: 1.107 | AE10: 1.457 | AF10: 1.838 | AG10: 2.25 | AH10: 2.687 | AI10: 3.144 | AJ10: 3.618 | AK10: 4.105 | AL10: 4.854 | AM10: 5.62 | AN10: 7.152 | CR10: tuner
B11: 300 | C11: 0 | D11: 0.322 | E11: 0.366 | F11: 0.523 | G11: 0.658 | H11: 0.933 | I11: 1.216 | J11: 1.534 | K11: 1.885 | L11: 2.265 | M11: 2.667 | N11: 3.088 | O11: 3.523 | P11: 4.197 | Q11: 4.891 | R11: 6.279 | X11: 4351.13214 | Y11: 0 | Z11: 0.322 | AA11: 0.366 | AB11: 0.523 | AC11: 0.658 | AD11: 0.933 | AE11: 1.216 | AF11: 1.534 | AG11: 1.885 | AH11: 2.265 | AI11: 2.667 | AJ11: 3.088 | AK11: 3.523 | AL11: 4.197 | AM11: 4.891 | AN11: 6.279
B12: 400 | C12: 0 | D12: 0.27 | E12: 0.328 | F12: 0.445 | G12: 0.578 | H12: 0.798 | I12: 1.028 | J12: 1.296 | K12: 1.599 | L12: 1.93 | M12: 2.286 | N12: 2.662 | O12: 3.053 | P12: 3.662 | Q12: 4.294 | R12: 5.557 | X12: 5801.50952 | Y12: 0 | Z12: 0.27 | AA12: 0.328 | AB12: 0.445 | AC12: 0.578 | AD12: 0.798 | AE12: 1.028 | AF12: 1.296 | AG12: 1.599 | AH12: 1.93 | AI12: 2.286 | AJ12: 2.662 | AK12: 3.053 | AL12: 3.662 | AM12: 4.294 | AN12: 5.557
B13: 500 | C13: 0 | D13: 0.2 | E13: 0.301 | F13: 0.396 | G13: 0.517 | H13: 0.695 | I13: 0.886 | J13: 1.114 | K13: 1.377 | L13: 1.67 | M13: 1.987 | N13: 2.324 | O13: 2.678 | P13: 3.233 | Q13: 3.81 | R13: 4.966 | X13: 7251.8869 | Y13: 0 | Z13: 0.2 | AA13: 0.301 | AB13: 0.396 | AC13: 0.517 | AD13: 0.695 | AE13: 0.886 | AF13: 1.114 | AG13: 1.377 | AH13: 1.67 | AI13: 1.987 | AJ13: 2.324 | AK13: 2.678 | AL13: 3.233 | AM13: 3.81 | AN13: 4.966
B14: 600 | C14: 0 | D14: 0.187 | E14: 0.285 | F14: 0.358 | G14: 0.47 | H14: 0.619 | I14: 0.78 | J14: 0.977 | K14: 1.209 | L14: 1.47 | M14: 1.755 | N14: 2.06 | O14: 2.382 | P14: 2.89 | Q14: 3.422 | R14: 4.484 | X14: 8702.26428 | Y14: 0 | Z14: 0.187 | AA14: 0.285 | AB14: 0.358 | AC14: 0.47 | AD14: 0.619 | AE14: 0.78 | AF14: 0.977 | AG14: 1.209 | AH14: 1.47 | AI14: 1.755 | AJ14: 2.06 | AK14: 2.382 | AL14: 2.89 | AM14: 3.422 | AN14: 4.484
B15: 700 | C15: 0 | D15: 0.179 | E15: 0.274 | F15: 0.338 | G15: 0.434 | H15: 0.562 | I15: 0.702 | J15: 0.876 | K15: 1.083 | L15: 1.318 | M15: 1.577 | N15: 1.856 | O15: 2.151 | P15: 2.619 | Q15: 3.111 | R15: 4.093 | X15: 10152.64166 | Y15: 0 | Z15: 0.179 | AA15: 0.274 | AB15: 0.338 | AC15: 0.434 | AD15: 0.562 | AE15: 0.702 | AF15: 0.876 | AG15: 1.083 | AH15: 1.318 | AI15: 1.577 | AJ15: 1.856 | AK15: 2.151 | AL15: 2.619 | AM15: 3.111 | AN15: 4.093
B16: 800 | C16: 0 | D16: 0.175 | E16: 0.273 | F16: 0.332 | G16: 0.404 | H16: 0.52 | I16: 0.644 | J16: 0.801 | K16: 0.989 | L16: 1.204 | M16: 1.441 | N16: 1.698 | O16: 1.971 | P16: 2.404 | Q16: 2.861 | R16: 3.775 | X16: 11603.01904 | Y16: 0 | Z16: 0.175 | AA16: 0.273 | AB16: 0.332 | AC16: 0.404 | AD16: 0.52 | AE16: 0.644 | AF16: 0.801 | AG16: 0.989 | AH16: 1.204 | AI16: 1.441 | AJ16: 1.698 | AK16: 1.971 | AL16: 2.404 | AM16: 2.861 | AN16: 3.775
B17: 900 | C17: 0 | D17: 0.159 | E17: 0.252 | F17: 0.304 | G17: 0.379 | H17: 0.486 | I17: 0.601 | J17: 0.745 | K17: 0.918 | L17: 1.116 | M17: 1.336 | N17: 1.575 | O17: 1.828 | P17: 2.233 | Q17: 2.659 | R17: 3.513 | X17: 13053.39642 | Y17: 0 | Z17: 0.159 | AA17: 0.252 | AB17: 0.304 | AC17: 0.379 | AD17: 0.486 | AE17: 0.601 | AF17: 0.745 | AG17: 0.918 | AH17: 1.116 | AI17: 1.336 | AJ17: 1.575 | AK17: 1.828 | AL17: 2.233 | AM17: 2.659 | AN17: 3.513
B18: 1000 | C18: 0 | D18: 0.155 | E18: 0.247 | F18: 0.297 | G18: 0.356 | H18: 0.458 | I18: 0.567 | J18: 0.701 | K18: 0.863 | L18: 1.048 | M18: 1.253 | N18: 1.476 | O18: 1.713 | P18: 2.092 | Q18: 2.492 | R18: 3.293 | X18: 14503.7738 | Y18: 0 | Z18: 0.155 | AA18: 0.247 | AB18: 0.297 | AC18: 0.356 | AD18: 0.458 | AE18: 0.567 | AF18: 0.701 | AG18: 0.863 | AH18: 1.048 | AI18: 1.253 | AJ18: 1.476 | AK18: 1.713 | AL18: 2.092 | AM18: 2.492 | AN18: 3.293
B19: 1100 | C19: 0 | D19: 0.156 | E19: 0.25 | F19: 0.3 | G19: 0.334 | H19: 0.433 | I19: 0.537 | J19: 0.665 | K19: 0.817 | L19: 0.991 | M19: 1.184 | N19: 1.393 | O19: 1.616 | P19: 1.972 | Q19: 2.349 | R19: 3.103 | X19: 15954.15118 | Y19: 0 | Z19: 0.156 | AA19: 0.25 | AB19: 0.3 | AC19: 0.334 | AD19: 0.433 | AE19: 0.537 | AF19: 0.665 | AG19: 0.817 | AH19: 0.991 | AI19: 1.184 | AJ19: 1.393 | AK19: 1.616 | AL19: 1.972 | AM19: 2.349 | AN19: 3.103
B20: 1200 | C20: 0 | D20: 0.145 | E20: 0.237 | F20: 0.283 | G20: 0.314 | H20: 0.409 | I20: 0.511 | J20: 0.633 | K20: 0.777 | L20: 0.942 | M20: 1.124 | N20: 1.321 | O20: 1.531 | P20: 1.866 | Q20: 2.222 | R20: 2.932 | X20: 17404.52856 | Y20: 0 | Z20: 0.145 | AA20: 0.237 | AB20: 0.283 | AC20: 0.314 | AD20: 0.409 | AE20: 0.511 | AF20: 0.633 | AG20: 0.777 | AH20: 0.942 | AI20: 1.124 | AJ20: 1.321 | AK20: 1.531 | AL20: 1.866 | AM20: 2.222 | AN20: 2.932
B21: 1300 | C21: 0 | D21: 0.146 | E21: 0.24 | F21: 0.287 | G21: 0.295 | H21: 0.388 | I21: 0.486 | J21: 0.603 | K21: 0.741 | L21: 0.896 | M21: 1.068 | N21: 1.254 | O21: 1.453 | P21: 1.769 | Q21: 2.104 | R21: 2.774 | X21: 18854.90594 | Y21: 0 | Z21: 0.146 | AA21: 0.24 | AB21: 0.287 | AC21: 0.295 | AD21: 0.388 | AE21: 0.486 | AF21: 0.603 | AG21: 0.741 | AH21: 0.896 | AI21: 1.068 | AJ21: 1.254 | AK21: 1.453 | AL21: 1.769 | AM21: 2.104 | AN21: 2.774
B22: 1400 | C22: 0 | D22: 0.137 | E22: 0.23 | F22: 0.273 | G22: 0.283 | H22: 0.371 | I22: 0.466 | J22: 0.578 | K22: 0.708 | L22: 0.855 | M22: 1.018 | N22: 1.193 | O22: 1.379 | P22: 1.731 | Q22: 2.057 | R22: 2.708 | X22: 20305.28332 | Y22: 0 | Z22: 0.137 | AA22: 0.23 | AB22: 0.273 | AC22: 0.283 | AD22: 0.371 | AE22: 0.466 | AF22: 0.578 | AG22: 0.708 | AH22: 0.855 | AI22: 1.018 | AJ22: 1.193 | AK22: 1.379 | AL22: 1.731 | AM22: 2.057 | AN22: 2.708
B23: 1600 | C23: 0 | D23: 0.083 | E23: 0.22 | F23: 0.261 | G23: 0.283 | H23: 0.371 | I23: 0.458 | J23: 0.556 | K23: 0.67 | L23: 0.798 | M23: 0.939 | N23: 1.092 | O23: 1.254 | P23: 1.563 | Q23: 1.848 | R23: 2.419 | X23: 23206.03808 | Y23: 0 | Z23: 0.083 | AA23: 0.22 | AB23: 0.261 | AC23: 0.283 | AD23: 0.371 | AE23: 0.458 | AF23: 0.556 | AG23: 0.67 | AH23: 0.798 | AI23: 0.939 | AJ23: 1.092 | AK23: 1.254 | AL23: 1.563 | AM23: 1.848 | AN23: 2.419
B24: 1800 | C24: 0 | D24: 0.08 | E24: 0.218 | F24: 0.255 | G24: 0.283 | H24: 0.371 | I24: 0.458 | J24: 0.556 | K24: 0.67 | L24: 0.798 | M24: 0.939 | N24: 1.065 | O24: 1.2 | P24: 1.464 | Q24: 1.705 | R24: 2.188 | X24: 26106.79284 | Y24: 0 | Z24: 0.08 | AA24: 0.218 | AB24: 0.255 | AC24: 0.283 | AD24: 0.371 | AE24: 0.458 | AF24: 0.556 | AG24: 0.67 | AH24: 0.798 | AI24: 0.939 | AJ24: 1.065 | AK24: 1.2 | AL24: 1.464 | AM24: 1.705 | AN24: 2.188
A27: Copy table from MCC and paste into table below. Axis values MUST match.
B28: Torque to Fuel
B29: MM3/s | C29: RPM
B30: Nm | C30: 600 | D30: 800 | E30: 900 | F30: 1000 | G30: 1100 | H30: 1200 | I30: 1300 | J30: 1400 | K30: 1500 | L30: 1600 | M30: 1700 | N30: 1800 | O30: 2000 | P30: 2200 | Q30: 2400 | R30: 2600 | S30: 2800 | T30: 3000 | U30: 3200
B31: -200 | C31: -10 | D31: -11 | E31: -11 | F31: -11 | G31: -12 | H31: -10 | I31: -9 | J31: -9 | K31: -11 | L31: -11 | M31: -11 | N31: -10 | O31: -10 | P31: -8 | Q31: -9 | R31: -7 | S31: -5 | T31: -2 | U31: 0
B32: -100 | C32: -2 | D32: -2 | E32: -2 | F32: -2 | G32: -2 | H32: -1 | I32: -1 | J32: -1 | K32: -1 | L32: -1 | M32: -1 | N32: 0 | O32: 0 | P32: 1 | Q32: 1 | R32: 3 | S32: 4 | T32: 5 | U32: 6
B33: 0 | C33: 6 | D33: 6 | E33: 7 | F33: 7 | G33: 8 | H33: 7 | I33: 8 | J33: 8 | K33: 9 | L33: 10 | M33: 10 | N33: 10 | O33: 11 | P33: 11 | Q33: 11 | R33: 12 | S33: 10 | T33: 13 | U33: 14
B34: 75 | C34: 13 | D34: 12 | E34: 13 | F34: 13 | G34: 14 | H34: 14 | I34: 15 | J34: 15 | K34: 13 | L34: 14 | M34: 14 | N34: 14 | O34: 16 | P34: 13 | Q34: 14 | R34: 18 | S34: 18 | T34: 21 | U34: 22
B35: 150 | C35: 26 | D35: 25 | E35: 24 | F35: 23 | G35: 23 | H35: 24 | I35: 24 | J35: 24 | K35: 23 | L35: 24 | M35: 25 | N35: 25 | O35: 25 | P35: 26 | Q35: 27 | R35: 29 | S35: 32 | T35: 32 | U35: 35
B36: 225 | C36: 30 | D36: 31 | E36: 31 | F36: 31 | G36: 31 | H36: 31 | I36: 31 | J36: 32 | K36: 31 | L36: 32 | M36: 32 | N36: 33 | O36: 35 | P36: 35 | Q36: 35 | R36: 36 | S36: 38 | T36: 39 | U36: 41
B37: 300 | C37: 31 | D37: 35 | E37: 36 | F37: 38 | G37: 39 | H37: 39 | I37: 39 | J37: 39 | K37: 39 | L37: 39 | M37: 40 | N37: 41 | O37: 40 | P37: 41 | Q37: 42 | R37: 42 | S37: 44 | T37: 45 | U37: 47
B38: 375 | C38: 42 | D38: 44 | E38: 45 | F38: 46 | G38: 47 | H38: 46 | I38: 46 | J38: 47 | K38: 48 | L38: 48 | M38: 49 | N38: 50 | O38: 50 | P38: 49 | Q38: 50 | R38: 49 | S38: 49 | T38: 51 | U38: 55
B39: 450 | C39: 54 | D39: 55 | E39: 56 | F39: 57 | G39: 57 | H39: 57 | I39: 57 | J39: 58 | K39: 58 | L39: 57 | M39: 57 | N39: 56 | O39: 58 | P39: 55 | Q39: 55 | R39: 58 | S39: 60 | T39: 61 | U39: 66
B40: 525 | C40: 74 | D40: 70 | E40: 69 | F40: 67 | G40: 65 | H40: 66 | I40: 66 | J40: 66 | K40: 66 | L40: 66 | M40: 66 | N40: 65 | O40: 66 | P40: 65 | Q40: 65 | R40: 69 | S40: 70 | T40: 72 | U40: 74
B41: 600 | C41: 95 | D41: 83 | E41: 79 | F41: 78 | G41: 74 | H41: 75 | I41: 74 | J41: 74 | K41: 75 | L41: 75 | M41: 75 | N41: 75 | O41: 75 | P41: 75 | Q41: 76 | R41: 78 | S41: 79 | T41: 83 | U41: 83
B42: 675 | C42: 115 | D42: 102 | E42: 93 | F42: 88 | G42: 82 | H42: 84 | I42: 83 | J42: 82 | K42: 84 | L42: 85 | M42: 85 | N42: 85 | O42: 85 | P42: 86 | Q42: 87 | R42: 87 | S42: 88 | T42: 93 | U42: 97
B43: 750 | C43: 135 | D43: 117 | E43: 108 | F43: 99 | G43: 90 | H43: 94 | I43: 93 | J43: 92 | K43: 93 | L43: 95 | M43: 95 | N43: 96 | O43: 95 | P43: 95 | Q43: 96 | R43: 97 | S43: 96 | T43: 104 | U43: 109
B44: 825 | C44: 155 | D44: 132 | E44: 121 | F44: 109 | G44: 98 | H44: 104 | I44: 103 | J44: 102 | K44: 102 | L44: 105 | M44: 105 | N44: 106 | O44: 105 | P44: 107 | Q44: 107 | R44: 107 | S44: 107 | T44: 109 | U44: 109
B45: 881 | C45: 170 | D45: 144 | E45: 131 | F45: 117 | G45: 104 | H45: 112 | I45: 110 | J45: 110 | K45: 109 | L45: 112 | M45: 112 | N45: 112 | O45: 112 | P45: 111 | Q45: 111 | R45: 115 | S45: 115 | T45: 124 | U45: 123
B46: 949 | C46: 189 | D46: 158 | E46: 142 | F46: 127 | G46: 111 | H46: 121 | I46: 119 | J46: 119 | K46: 117 | L46: 122 | M46: 123 | N46: 123 | O46: 122 | P46: 126 | Q46: 125 | R46: 124 | S46: 124 | T46: 132 | U46: 132
A49: Copy table from MCC and paste into table below. Axis values MUST match.
B50: Injection Pressure
B51: PSI | C51: RPM
B52: Nm | C52: 600 | D52: 800 | E52: 900 | F52: 1000 | G52: 1100 | H52: 1200 | I52: 1300 | J52: 1400 | K52: 1500 | L52: 1600 | M52: 1700 | N52: 1800 | O52: 2000 | P52: 2200 | Q52: 2400 | R52: 2600 | S52: 2800 | T52: 3000 | U52: 3200
B53: -200 | C53: 4423 | D53: 4783 | E53: 5449 | F53: 5597 | G53: 6221 | H53: 6857 | I53: 7204 | J53: 7557 | K53: 7875 | L53: 8194 | M53: 8427 | N53: 8668 | O53: 9341 | P53: 10877 | Q53: 11017 | R53: 11307 | S53: 11470 | T53: 12161 | U53: 12879
B54: -100 | C54: 4423 | D54: 4783 | E54: 5449 | F54: 5597 | G54: 6221 | H54: 6857 | I54: 7204 | J54: 7557 | K54: 7875 | L54: 8194 | M54: 8427 | N54: 8668 | O54: 9341 | P54: 10877 | Q54: 11017 | R54: 11307 | S54: 11470 | T54: 12161 | U54: 12910
B55: 0 | C55: 4457 | D55: 4817 | E55: 5449 | F55: 5597 | G55: 6221 | H55: 6857 | I55: 7204 | J55: 7557 | K55: 7875 | L55: 8194 | M55: 8427 | N55: 8668 | O55: 9341 | P55: 10877 | Q55: 11216 | R55: 11537 | S55: 11604 | T55: 12493 | U55: 13360
B56: 75 | C56: 4953 | D56: 5192 | E56: 5629 | F56: 5606 | G56: 6349 | H56: 7178 | I56: 7474 | J56: 8397 | K56: 8043 | L56: 8519 | M56: 8743 | N56: 8925 | O56: 9559 | P56: 10877 | Q56: 11451 | R56: 11884 | S56: 12482 | T56: 13509 | U56: 14388
B57: 150 | C57: 6715 | D57: 6970 | E57: 7087 | F57: 7448 | G57: 7903 | H57: 8655 | I57: 9245 | J57: 10131 | K57: 10210 | L57: 10654 | M57: 10531 | N57: 10589 | O57: 11318 | P57: 12072 | Q57: 12052 | R57: 13258 | S57: 14032 | T57: 15114 | U57: 16688
B58: 225 | C58: 7959 | D58: 8465 | E58: 8995 | F58: 9284 | G58: 9588 | H58: 9744 | I58: 10395 | J58: 11177 | K58: 11821 | L58: 13323 | M58: 12712 | N58: 12903 | O58: 13857 | P58: 15094 | Q58: 15565 | R58: 16167 | S58: 17350 | T58: 18258 | U58: 20102
B59: 300 | C59: 8967 | D59: 8983 | E59: 9765 | F59: 11582 | G59: 11701 | H59: 11966 | I59: 12341 | J59: 12609 | K59: 13461 | L59: 14752 | M59: 15095 | N59: 15852 | O59: 16953 | P59: 17587 | Q59: 18246 | R59: 18832 | S59: 20102 | T59: 21022 | U59: 22199
B60: 375 | C60: 9106 | D60: 9113 | E60: 10097 | F60: 13239 | G60: 13757 | H60: 14151 | I60: 14071 | J60: 14095 | K60: 14716 | L60: 15433 | M60: 16689 | N60: 17949 | O60: 19467 | P60: 19043 | Q60: 19880 | R60: 20754 | S60: 21723 | T60: 22694 | U60: 23461
B61: 450 | C61: 9183 | D61: 9182 | E61: 10302 | F61: 12639 | G61: 13330 | H61: 14123 | I61: 14488 | J61: 14776 | K61: 15643 | L61: 16494 | M61: 17583 | N61: 18829 | O61: 20186 | P61: 19813 | Q61: 20786 | R61: 21784 | S61: 22485 | T61: 23209 | U61: 23939
B62: 525 | C62: 8518 | D62: 8969 | E62: 10525 | F62: 11554 | G62: 12682 | H62: 13756 | I62: 14620 | J62: 15336 | K62: 16434 | L62: 17406 | M62: 18481 | N62: 19605 | O62: 20867 | P62: 20819 | Q62: 21698 | R62: 22430 | S62: 23055 | T62: 23736 | U62: 24386
B63: 600 | C63: 6523 | D63: 6730 | E63: 9086 | F63: 10515 | G63: 12039 | H63: 13400 | I63: 14748 | J63: 15855 | K63: 17200 | L63: 18427 | M63: 19325 | N63: 20303 | O63: 21576 | P63: 21760 | Q63: 22495 | R63: 23072 | S63: 23605 | T63: 24239 | U63: 24914
B64: 675 | C64: 6523 | D64: 6523 | E64: 8120 | F64: 9236 | G64: 11338 | H64: 13058 | I64: 14884 | J64: 16387 | K64: 17928 | L64: 19368 | M64: 20209 | N64: 21052 | O64: 22270 | P64: 22744 | Q64: 23454 | R64: 23905 | S64: 24321 | T64: 25090 | U64: 25656
B65: 750 | C65: 6523 | D65: 6523 | E65: 7975 | F65: 7921 | G65: 10465 | H65: 12574 | I65: 15034 | J65: 17064 | K65: 18802 | L65: 20576 | M65: 21225 | N65: 21973 | O65: 23205 | P65: 24596 | Q65: 25114 | R65: 25265 | S65: 25404 | T65: 25936 | U65: 26103
B66: 825 | C66: 6523 | D66: 6523 | E66: 7975 | F66: 7862 | G66: 10133 | H66: 12327 | I66: 15252 | J66: 17763 | K66: 19793 | L66: 21739 | M66: 22386 | N66: 22907 | O66: 24091 | P66: 26102 | Q66: 26102 | R66: 26103 | S66: 26103 | T66: 26103 | U66: 26103
B67: 881 | C67: 6523 | D67: 6523 | E67: 7975 | F67: 7862 | G67: 10133 | H67: 12327 | I67: 15425 | J67: 18243 | K67: 20480 | L67: 22455 | M67: 23030 | N67: 23457 | O67: 24753 | P67: 26102 | Q67: 26102 | R67: 26103 | S67: 26103 | T67: 26103 | U67: 26103
B68: 949 | C68: 6523 | D68: 6523 | E68: 7975 | F68: 7862 | G68: 10133 | H68: 12327 | I68: 15634 | J68: 18816 | K68: 21313 | L68: 23346 | M68: 23805 | N68: 24126 | O68: 25535 | P68: 26103 | Q68: 26103 | R68: 26103 | S68: 26103 | T68: 26103 | U68: 26103
A71: Copy table from MCC and paste into table below. Axis values MUST match.
B72: Injection Timing (Current)
B73: Deg BTDC | C73: RPM
B74: Nm | C74: 600 | D74: 800 | E74: 900 | F74: 1000 | G74: 1100 | H74: 1200 | I74: 1300 | J74: 1400 | K74: 1500 | L74: 1600 | M74: 1700 | N74: 1800 | O74: 2000 | P74: 2200 | Q74: 2400 | R74: 2600 | S74: 2800 | T74: 3000 | U74: 3200
B75: -200 | C75: 1 | D75: 1 | E75: 1 | F75: 1 | G75: 1 | H75: 1 | I75: 1 | J75: 1 | K75: 1 | L75: 1 | M75: 2 | N75: 3 | O75: 5 | P75: 5 | Q75: 5 | R75: 6 | S75: 7 | T75: 8 | U75: 8
B76: -100 | C76: 1 | D76: 1 | E76: 1 | F76: 1 | G76: 1 | H76: 1 | I76: 1 | J76: 1 | K76: 1 | L76: 1 | M76: 2 | N76: 3 | O76: 5 | P76: 5 | Q76: 5 | R76: 6 | S76: 7 | T76: 8 | U76: 8
B77: 0 | C77: 1 | D77: 1 | E77: 1 | F77: 1 | G77: 1 | H77: 1 | I77: 1 | J77: 1 | K77: 1 | L77: 1 | M77: 2 | N77: 3 | O77: 5 | P77: 5 | Q77: 5 | R77: 6 | S77: 7 | T77: 8 | U77: 8
B78: 75 | C78: 1 | D78: 1 | E78: 1 | F78: 1 | G78: 1 | H78: 0.52 | I78: 0.68 | J78: 0.17 | K78: 0.8 | L78: 1 | M78: 2 | N78: 2.28 | O78: 4.42 | P78: 4.06 | Q78: 5 | R78: 6 | S78: 7 | T78: 8 | U78: 8
B79: 150 | C79: 1 | D79: 1 | E79: 1 | F79: 1 | G79: 1 | H79: -2.12 | I79: -1.78 | J79: -1.5 | K79: -0.92 | L79: -1 | M79: -1 | N79: 2 | O79: 3.87 | P79: 4 | Q79: 5 | R79: 6 | S79: 7 | T79: 8 | U79: 8
B80: 225 | C80: 0.28 | D80: 0 | E80: 0 | F80: 0 | G80: 0 | H80: -4.5 | I80: -3.9 | J80: -3.02 | K80: -2.74 | L80: -1.03 | M80: -0.44 | N80: 1 | O80: 2.34 | P80: 4 | Q80: 5 | R80: 6 | S80: 7 | T80: 8 | U80: 8
B81: 300 | C81: -1.19 | D81: -2 | E81: -1.04 | F81: -1.11 | G81: -1.05 | H81: -1.5 | I81: -1.06 | J81: -1 | K81: -0.58 | L81: 0 | M81: 0 | N81: 0 | O81: 1 | P81: 4 | Q81: 5 | R81: 6 | S81: 7 | T81: 8 | U81: 8
B82: 375 | C82: -2 | D82: -2 | E82: -1.83 | F82: -1.9 | G82: -1.46 | H82: -1.5 | I82: -1.42 | J82: -1 | K82: -0.93 | L82: 0 | M82: 0 | N82: 0 | O82: 1 | P82: 4 | Q82: 5 | R82: 6 | S82: 7 | T82: 8.37 | U82: 8.91
B83: 450 | C83: -2 | D83: -2 | E83: -2 | F83: -2 | G83: -1.74 | H83: -1.5 | I83: -1.5 | J83: -1 | K83: -1 | L83: 0 | M83: 0 | N83: 0 | O83: 1 | P83: 3.71 | Q83: 5.03 | R83: 6.36 | S83: 8.07 | T83: 10.01 | U83: 10.58
B84: 525 | C84: -2 | D84: -2 | E84: -2 | F84: -2 | G84: -2 | H84: -1.5 | I84: -1.5 | J84: -1 | K84: -1 | L84: 0 | M84: 0 | N84: 0 | O84: 1 | P84: 3.11 | Q84: 5.1 | R84: 6.73 | S84: 9.11 | T84: 11.7 | U84: 12.2
B85: 600 | C85: -3.46 | D85: -2 | E85: -2 | F85: -2 | G85: -2 | H85: -1.5 | I85: -1.5 | J85: -1 | K85: -1 | L85: -0.49 | M85: 0 | N85: 0 | O85: 1 | P85: 3 | Q85: 5.2 | R85: 7.11 | S85: 10.1 | T85: 13.36 | U85: 14.15
B86: 675 | C86: -4.6 | D86: -3.93 | E86: -3.41 | F86: -2.62 | G86: -2.11 | H86: -1.5 | I86: -1.5 | J86: -1 | K86: -1 | L86: -0.98 | M86: 0 | N86: 0 | O86: 0.97 | P86: 2.98 | Q86: 5.3 | R86: 7.56 | S86: 11.37 | T86: 16.02 | U86: 17.23
B87: 750 | C87: -4.6 | D87: -4.6 | E87: -4.5 | F87: -4.32 | G87: -3.7 | H87: -3.21 | I87: -2.92 | J87: -2.57 | K87: -2.48 | L87: -2.73 | M87: -1.63 | N87: -1.07 | O87: 0.53 | P87: 2.5 | Q87: 5.3 | R87: 8.2 | S87: 13.27 | T87: 18.59 | U87: 19.1
B88: 825 | C88: -4.6 | D88: -4.6 | E88: -4.5 | F88: -4.4 | G88: -4.3 | H88: -4.2 | I88: -4.1 | J88: -3.9 | K88: -3.9 | L88: -3.8 | M88: -2.9 | N88: -1.8 | O88: 0.2 | P88: 2.1 | Q88: 5.3 | R88: 8.6 | S88: 14.5 | T88: 19.1 | U88: 19.1
B89: 881 | C89: -4.6 | D89: -4.6 | E89: -4.5 | F89: -4.4 | G89: -4.3 | H89: -4.2 | I89: -4.1 | J89: -3.9 | K89: -3.9 | L89: -3.8 | M89: -2.9 | N89: -1.8 | O89: 0.2 | P89: 2.1 | Q89: 5.3 | R89: 8.6 | S89: 14.5 | T89: 19.1 | U89: 19.1
B90: 949 | C90: -4.6 | D90: -4.6 | E90: -4.5 | F90: -4.4 | G90: -4.3 | H90: -4.2 | I90: -4.1 | J90: -3.9 | K90: -3.9 | L90: -3.8 | M90: -2.9 | N90: -1.8 | O90: 0.2 | P90: 2.1 | Q90: 5.3 | R90: 8.6 | S90: 14.5 | T90: 19.1 | U90: 19.1
A93: This Table is just for information (that you really do need)
B94: Calculated Main Duration in Degrees
C95: RPM
B96: Nm | C96: =C74 -> 600 | D96: 800 | E96: 900 | F96: 1000 | G96: 1100 | H96: 1200 | I96: 1300 | J96: 1400 | K96: 1500 | L96: 1600 | M96: 1700 | N96: 1800 | O96: 2000 | P96: 2200 | Q96: 2400 | R96: 2600 | S96: 2800 | T96: 3000 | U96: 3200
B97: =B75 -> -200 | C97: =BiLInterp(BiLInterp(C$96,$B97,$B$30:$U$46),BiLInterp(C$96,$B97,$B$52:$U$68),$X$8:$AN$24)/((1/C$96)*167) -> -11.47628768 | D97: -16.15176001 | E97: -16.7552124 | F97: -18.26739215 | G97: -19.7410351 | H97: -15.74073379 | I97: -14.17389703 | J97: -14.88348329 | K97: -19.20865999 | L97: -20.18790258 | M97: =BiLInterp(BiLInterp(M$96,$B97,$B$30:$U$46),BiLInterp(M$96,$B97,$B$52:$U$68),$X$8:$AN$24)/((1/M$96)*167) -> -21.21579325 | N97: -20.18879106 | O97: -21.97327638 | P97: -18.65413356 | Q97: -22.84376986 | R97: -19.16082832 | S97: -14.70141288 | T97: -6.066272003 | U97: 0
B98: -100 | C98: -2.295257536 | D98: -2.936683639 | E98: -3.046402255 | F98: -3.321344026 | G98: -3.290172517 | H98: -1.574073379 | I98: -1.574877448 | J98: -1.653720365 | K98: -1.746241817 | L98: -1.835263871 | M98: -1.928708477 | N98: 0 | O98: 0 | P98: 2.331766695 | Q98: 2.538196651 | R98: 4.564960553 | S98: 5.243389956 | T98: 5.770562853 | U98: 6.164483695
B99: 0 | C99: 1.955487391 | D99: 2.5140961 | E99: 2.788125006 | F99: 3.049767322 | G99: 3.349699963 | H99: 3.298547449 | I99: 3.662228811 | J99: 3.851844525 | K99: 4.251926179 | L99: 4.660795081 | M99: 4.875233918 | N99: 5.077836068 | O99: 5.606239943 | P99: 5.680714352 | Q99: 6.092341298 | R99: 6.673978926 | S99: 6.773369195 | T99: 7.577294345 | U99: 7.981127796
B100: 75 | C100: 2.516605072 | D100: 3.162836042 | E100: 3.532515191 | F100: 3.9341803 | G100: 4.193384084 | H100: 4.255066224 | I100: 4.644049879 | J100: 4.673183629 | K100: 4.850463344 | L100: 5.144953079 | M100: 5.378443394 | N100: 5.634770155 | O100: 6.355593457 | P100: 6.002169579 | Q100: 6.525233643 | R100: 7.63749079 | S100: 8.002393957 | T100: 8.775735635 | U100: 9.238435222
B101: 150 | C101: 3.076848681 | D101: 3.900878498 | E101: 4.229908934 | F101: 4.4359683 | G101: 4.703924285 | H101: 4.931264957 | I101: 5.129372766 | J101: 5.189019182 | K101: 5.408525675 | L101: 5.760664515 | M101: 6.300755354 | N101: 6.649836745 | O101: 7.087732761 | P101: 7.662586445 | Q101: 8.541192899 | R101: 9.104488326 | S101: 10.15226275 | T101: 10.43125207 | U101: 11.23500536
B102: 225 | C102: 2.997560638 | D102: 3.916394954 | E102: 4.222415834 | F102: 4.595762033 | G102: 4.944475824 | H102: 5.331911892 | I102: 5.522463198 | J102: 5.81322762 | K102: 5.865647054 | L102: 5.969898304 | M102: 6.520401257 | N102: 6.995891647 | O102: 7.801095313 | P102: 8.175183677 | Q102: 8.764372307 | R102: 9.488537754 | S102: 10.22348676 | T102: 10.84025369 | U102: 11.39384144
B103: 300 | C103: 2.820513532 | D103: 4.125395633 | E103: 4.478094655 | F103: 4.614596621 | G103: 5.148294527 | H103: 5.544506005 | I103: 5.896453968 | J103: 6.265294334 | K103: 6.45373285 | L103: 6.529738287 | M103: 6.986542933 | N103: 7.359584961 | O103: 7.700145814 | P103: 8.47790716 | Q103: 9.25075785 | R103: 9.825396021 | S103: 10.6291434 | T103: 11.41774165 | U103: 12.40384862
B104: 375 | C104: 3.570873795 | D104: 4.974206724 | E104: 5.302208617 | F104: 5.04386084 | G104: 5.539648878 | H104: 5.824005169 | I104: 6.331065263 | J104: 6.949458391 | K104: 7.402650074 | L104: 7.687761705 | M104: 7.959857181 | N104: 8.229186169 | O104: 8.70746357 | P104: 9.524868403 | Q104: 10.31391152 | R104: 10.73269565 | S104: 11.3544165 | T104: 12.3923911 | U104: 14.06467066
B105: 450 | C105: 4.556369298 | D105: 6.196519795 | E105: 6.53757969 | F105: 6.468777719 | G105: 6.879119373 | H105: 7.252659508 | I105: 7.731474659 | J105: 8.389222549 | K105: 8.694218344 | L105: 8.829380157 | M105: 9.03146658 | N105: 8.997307369 | O105: 9.926232005 | P105: 10.46065016 | Q105: 11.11801065 | R105: 12.43142913 | S105: 13.61719541 | T105: 14.58862275 | U105: 16.91209581
B106: 525 | C106: 6.855451973 | D106: 8.250368435 | E106: 8.174097773 | F106: 8.229181967 | G106: 8.238213802 | H106: 8.699633786 | I106: 9.075520484 | J106: 9.507945372 | K106: 9.776093418 | L106: 10.07087181 | M106: 10.30796071 | N106: 10.33080025 | O106: 11.24797749 | P106: 12.17848024 | Q106: 12.9894854 | R106: 14.71952295 | S106: 15.81268001 | T106: 17.40024128 | U106: 19.08132795
B107: 600 | C107: =BiLInterp(BiLInterp(C$96,$B107,$B$30:$U$46),BiLInterp(C$96,$B107,$B$52:$U$68),$X$8:$AN$24)/((1/C$96)*167) -> 10.99581586 | D107: 12.24343031 | E107: 10.65025671 | F107: 10.54985026 | G107: 9.946587779 | H107: 10.3024189 | I107: 10.35047741 | J107: 10.66933989 | K107: 11.06413611 | L107: 11.29719178 | M107: =BiLInterp(BiLInterp(M$96,$B107,$B$30:$U$46),BiLInterp(M$96,$B107,$B$52:$U$68),$X$8:$AN$24)/((1/M$96)*167) -> 11.63544566 | N107: 11.91651061 | O107: 12.767356 | P107: 13.96888508 | Q107: 15.13868587 | R107: 16.59428504 | S107: 17.99641894 | T107: 20.26528476 | U107: 21.45979689
B108: 675 | C108: 13.83839773 | D108: 15.96247347 | E108: 14.04541614 | F108: 13.38071671 | G108: 11.73953204 | H108: 12.04214698 | I108: 11.86534079 | J108: 11.86509615 | K108: 12.38829567 | L108: 12.73888193 | M108: 13.13663282 | N108: 13.54754769 | O108: 14.48459542 | P108: 15.90825461 | Q108: 17.26672646 | R108: 18.59451495 | S108: 20.16871249 | T108: 22.90209342 | U108: 25.57806758
B109: 750 | C109: 16.73576239 | D109: 18.83739434 | E109: 17.09948121 | F109: 17.13433812 | G109: 13.91292232 | H109: 14.26874786 | I109: 13.63565536 | J109: 13.38199551 | K109: 13.64536391 | L109: 14.21154367 | M109: 14.78242782 | N109: 15.49989326 | O109: 16.25209416 | P109: 17.44108751 | Q109: 19.1172537 | R109: 20.93957236 | S109: 22.18277549 | T109: 26.08477295 | U109: 29.28692607
B110: 825 | C110: 19.63342186 | D110: 21.73481796 | E110: 19.68966326 | F110: 19.38642524 | G110: 15.8348439 | H110: 16.46017368 | I110: 15.42206856 | J110: 14.88832879 | K110: 15.05896664 | L110: 15.78888547 | M110: 16.39424311 | N110: 17.24120684 | O110: 18.3568514 | P110: 19.7118235 | Q110: 21.50380745 | R110: 23.29522857 | S110: 25.08716923 | T110: 27.45649319 | U110: 29.28692607
B111: 881 | C111: 21.80666647 | D111: 24.05294554 | E111: 21.68212049 | F111: 21.16868594 | G111: 17.06932503 | H111: 18.14146902 | I111: 16.69172114 | J111: 16.13389906 | K111: 16.23193939 | L111: 16.7133023 | M111: 17.38027635 | N111: 18.16877366 | O111: 19.54794383 | P111: 20.55870564 | Q111: 22.42767888 | R111: 25.29682404 | S111: 27.24273358 | T111: 31.78926322 | U111: 33.59997095
B112: 949 | C112: 24.55944297 | D112: 26.75742772 | E112: 23.87382343 | F112: 23.39695525 | G112: 18.57278653 | H112: 20.04529249 | I112: 18.33306332 | J112: 17.47731855 | K112: 17.26385445 | L112: 18.00128215 | M112: 19.0741588 | N112: 20.01510842 | O112: 21.1562203 | P112: 23.73641903 | Q112: 25.66284294 | R112: 27.55069479 | S112: 29.66997901 | T112: 34.10358688 | U112: 36.37715934
A115: Calculated %BDTC with the current timing map
B116: Injection Timing %BTDC (Current, Calculated)
B117: Deg BTDC | C117: RPM
B118: Nm | C118: =C74 -> 600 | D118: =D74 -> 800 | E118: 900 | F118: 1000 | G118: 1100 | H118: 1200 | I118: 1300 | J118: 1400 | K118: 1500 | L118: 1600 | M118: 1700 | N118: 1800 | O118: 2000 | P118: 2200 | Q118: 2400 | R118: 2600 | S118: 2800 | T118: 3000 | U118: 3200
B119: =B75 -> -200 | C119: =IF(C97<>0,(C75/C97)*100,0) -> -8.713619141 | D119: -6.191275744 | E119: -5.968291992 | F119: -5.47423514 | G119: -5.065590506 | H119: -6.35294398 | I119: -7.055222694 | J119: -6.718857277 | K119: -5.205985219 | L119: -4.95346159 | M119: -9.426939528 | N119: -14.85973078 | O119: -22.75491335 | P119: -26.80371074 | Q119: -21.88780587 | R119: -31.31388632 | S119: -47.6144712 | T119: -131.876711 | U119: 0
B120: =B76 -> -100 | C120: =IF(C98<>0,(C76/C98)*100,0) -> -43.5680957 | D120: -34.05201659 | E120: -32.82560596 | F120: -30.10829327 | G120: -30.39354304 | H120: -63.5294398 | I120: -63.49700424 | J120: -60.4697155 | K120: -57.26583741 | L120: -54.48807749 | M120: -103.6963348 | N120: 0 | O120: 0 | P120: 214.4296859 | Q120: 196.9902528 | R120: 131.435966 | S120: 133.5014191 | T120: 138.6346567 | U120: 129.7756697
B121: 0 | C121: =IF(C99<>0,(C77/C99)*100,0) -> 51.13814616 | D121: 39.77572696 | E121: 35.86639759 | F121: 32.78938668 | G121: 29.85342004 | H121: 30.31637457 | I121: 27.30577612 | J121: 25.96158785 | K121: 23.51875263 | L121: 21.45556676 | M121: 41.02367258 | N121: 59.08028459 | O121: 89.18633613 | P121: 88.01709943 | Q121: 82.07025437 | R121: 89.90139266 | S121: 103.3459095 | T121: 105.578583 | U121: 100.2364604
B122: 75 | C122: =IF(C100<>0,(C78/C100)*100,0) -> 39.73607187 | D122: 31.61719377 | E122: 28.30844161 | F122: 25.41825549 | G122: 23.84708817 | H122: 12.22072637 | I122: 14.64239226 | J122: 3.637777017 | K122: 16.49326968 | L122: 19.43652322 | M122: 37.18548014 | N122: 40.46305239 | O122: 69.54503981 | P122: 67.64220748 | Q122: 76.62560873 | R122: 78.55983287 | S122: 87.47382392 | T122: 91.16044891 | U122: 86.59475125
B123: 150 | C123: =IF(C101<>0,(C79/C101)*100,0) -> 32.50078583 | D123: 25.63525115 | E123: 23.6411709 | F123: 22.54299247 | G123: 21.25884558 | H123: -42.99099761 | I123: -34.7020987 | J123: -28.90719705 | K123: -17.01018087 | L123: -17.35910844 | M123: -15.87111297 | N123: 30.07592632 | O123: 54.60138144 | P123: 52.20169493 | Q123: 58.5398323 | R123: 65.90156179 | S123: 68.9501461 | T123: 76.69261508 | U123: 71.20601851
B124: 225 | C124: =IF(C102<>0,(C80/C102)*100,0) -> 9.340928637 | D124: 0 | E124: 0 | F124: 0 | G124: 0 | H124: -84.39749363 | I124: -70.62066075 | J124: -51.95048598 | K124: -46.71266401 | L124: -17.25322522 | M124: -6.748050966 | N124: 14.2941036 | O124: 29.99578785 | P124: 48.92856428 | Q124: 57.0491511 | R124: 63.23419009 | S124: 68.46979082 | T124: 73.79901089 | U124: 70.2133696
B125: 300 | C125: =IF(C103<>0,(C81/C103)*100,0) -> -42.19089845 | D125: -48.4801987 | E125: -23.22416296 | F125: -24.05410681 | G125: -20.39510355 | H125: -27.05380783 | I125: -17.97690622 | J125: -15.96094208 | K125: -8.98704693 | L125: 0 | M125: 0 | N125: 0 | O125: 12.98676706 | P125: 47.18145557 | Q125: 54.04962579 | R125: 61.06624087 | S125: 65.856671 | T125: 70.06639529 | U125: 64.49611119
B126: 375 | C126: =IF(C104<>0,(C82/C104)*100,0) -> -56.00870025 | D126: -40.2074162 | E126: -34.51391924 | F126: -37.66955632 | G126: -26.35546101 | H126: -25.75547165 | I126: -22.42908485 | J126: -14.38961058 | K126: -12.56306851 | L126: 0 | M126: 0 | N126: 0 | O126: 11.48440062 | P126: 41.99533086 | Q126: 48.47821304 | R126: 55.90394246 | S126: 61.6500196 | T126: 67.54144484 | U126: 63.35022139
B127: 450 | C127: =IF(C105<>0,(C83/C105)*100,0) -> -43.89459829 | D127: -32.27618189 | E127: -30.59236132 | F127: -30.91774191 | G127: -25.29393525 | H127: -20.6820684 | I127: -19.40121472 | J127: -11.92005569 | K127: -11.50189655 | L127: 0 | M127: 0 | N127: 0 | O127: 10.07431621 | P127: 35.46624678 | Q127: 45.24190666 | R127: 51.16065042 | S127: 59.26330466 | T127: 68.61511308 | U127: 62.55877521
B128: 525 | C128: =IF(C106<>0,(C84/C106)*100,0) -> -29.17386057 | D128: -24.24134165 | E128: -24.46753214 | F128: -24.30375228 | G128: -24.27710725 | H128: -17.24210509 | I128: -16.52797768 | J128: -10.51751941 | K128: -10.22903482 | L128: 0 | M128: 0 | N128: 0 | O128: 8.890487209 | P128: 25.5368481 | Q128: 39.26252537 | R128: 45.72159046 | S128: 57.61199235 | T128: 67.24044692 | U128: 63.93684984
B129: 600 | C129: =IF(C107<>0,(C85/C107)*100,0) -> -31.46651457 | D129: -16.33529125 | E129: -18.77889008 | F129: -18.95761504 | G129: -20.10739808 | H129: -14.55968753 | I129: -14.49208515 | J129: -9.372651074 | K129: -9.038211299 | L129: -4.337361087 | M129: 0 | N129: 0 | O129: 7.832475259 | P129: 21.47630239 | Q129: 34.34908448 | R129: 42.84607612 | S129: 56.1222765 | T129: 65.92554783 | U129: 65.93725036
B130: 675 | C130: =IF(C108<>0,(C86/C108)*100,0) -> -33.24084254 | D130: -24.62024452 | E130: -24.27838354 | F130: -19.58041603 | G130: -17.97345919 | H130: -12.45625056 | I130: -12.64186193 | J130: -8.428081725 | K130: -8.072135399 | L130: -7.692982832 | M130: 0 | N130: 0 | O130: 6.696769718 | P130: 18.73241329 | Q130: 30.69487441 | R130: 40.6571509 | S130: 56.37444633 | T130: 69.94993735 | U130: 67.36239922
B131: 750 | C131: =IF(C109<>0,(C87/C109)*100,0) -> -27.48604989 | D131: -24.41951322 | E131: -26.31658788 | F131: -25.21252919 | G131: -26.59398158 | H131: -22.49671822 | I131: -21.4144456 | J131: -19.20490855 | K131: -18.17467102 | L131: -19.20973586 | M131: -11.02660551 | N131: -6.903273344 | O131: 3.261118196 | P131: 14.33396856 | Q131: 27.72364736 | R131: 39.16030308 | S131: 59.82118876 | T131: 71.26763202 | U131: 65.21681365
B132: 825 | C132: =IF(C110<>0,(C88/C110)*100,0) -> -23.42943595 | D132: -21.16419843 | E132: -22.85463159 | F132: -22.69629365 | G132: -27.155304 | H132: -25.51613416 | I132: -26.58527929 | J132: -26.19501527 | K132: -25.89819138 | L132: -24.06756328 | M132: -17.68913625 | N132: -10.44010444 | O132: 1.089511462 | P132: 10.65350448 | Q132: 24.64679807 | R132: 36.91743129 | S132: 57.79847009 | T132: 69.56460122 | U132: 65.21681365
B133: 881 | C133: =IF(C111<>0,(C89/C111)*100,0) -> -21.09446671 | D133: -19.12447685 | E133: -20.75442761 | F133: -20.78541867 | G133: -25.19138861 | H133: -23.15137763 | I133: -24.56307511 | J133: -24.17270609 | K133: -24.02670382 | L133: -22.73638047 | M133: -16.68558049 | N133: -9.907107842 | O133: 1.02312551 | P133: 10.21465085 | Q133: 23.63151367 | R133: 33.9963625 | S133: 53.22520208 | T133: 60.08317924 | U133: 56.84528724
B134: 949 | C134: =IF(C112<>0,(C90/C112)*100,0) -> -18.7300665 | D134: -17.19148809 | E134: -18.84909643 | F134: -18.80586578 | G134: -23.15215325 | H134: -20.95255035 | I134: -22.36396574 | J134: -22.3146359 | K134: -22.5905519 | L134: -21.10960746 | M134: -15.20381596 | N134: -8.993206341 | O134: 0.9453484467 | P134: 8.847164339 | Q134: 20.65242737 | R134: 31.21518374 | S134: 48.87094796 | T134: 56.00583912 | U134: 52.50547417
A137: Entired Desired % of Injection to occur BTDC
B138: Injection Timing %BTDC (New Values to Calculate)
B139: Deg BTDC | C139: RPM
B140: Nm | C140: =C74 -> 600 | D140: 800 | E140: 900 | F140: 1000 | G140: 1100 | H140: 1200 | I140: 1300 | J140: 1400 | K140: 1500 | L140: 1600 | M140: 1700 | N140: 1800 | O140: 2000 | P140: 2200 | Q140: 2400 | R140: 2600 | S140: 2800 | T140: 3000 | U140: 3200
B141: =B75 -> -200 | C141: 50 | D141: 50 | E141: 50 | F141: 50 | G141: 50 | H141: 50 | I141: 50 | J141: 50 | K141: 50 | L141: 50 | M141: 50 | N141: 50 | O141: 50 | P141: 50 | Q141: 50 | R141: 50 | S141: 50 | T141: 50 | U141: 50
B142: -100 | C142: 50 | D142: 50 | E142: 50 | F142: 50 | G142: 50 | H142: 50 | I142: 50 | J142: 50 | K142: 50 | L142: 50 | M142: 50 | N142: 50 | O142: 50 | P142: 50 | Q142: 50 | R142: 50 | S142: 50 | T142: 50 | U142: 50
B143: 0 | C143: 50 | D143: 50 | E143: 50 | F143: 50 | G143: 50 | H143: 50 | I143: 50 | J143: 50 | K143: 50 | L143: 50 | M143: 50 | N143: 50 | O143: 50 | P143: 50 | Q143: 50 | R143: 50 | S143: 50 | T143: 50 | U143: 50
B144: 75 | C144: 50 | D144: 50 | E144: 50 | F144: 50 | G144: 50 | H144: 50 | I144: 50 | J144: 50 | K144: 50 | L144: 50 | M144: 50 | N144: 50 | O144: 50 | P144: 50 | Q144: 50 | R144: 50 | S144: 50 | T144: 50 | U144: 50
B145: 150 | C145: 50 | D145: 50 | E145: 50 | F145: 50 | G145: 50 | H145: 50 | I145: 50 | J145: 50 | K145: 50 | L145: 50 | M145: 50 | N145: 50 | O145: 50 | P145: 50 | Q145: 50 | R145: 50 | S145: 50 | T145: 50 | U145: 50
B146: 225 | C146: 50 | D146: 50 | E146: 50 | F146: 50 | G146: 50 | H146: 50 | I146: 50 | J146: 50 | K146: 50 | L146: 50 | M146: 50 | N146: 50 | O146: 50 | P146: 50 | Q146: 50 | R146: 50 | S146: 50 | T146: 50 | U146: 50
B147: 300 | C147: 50 | D147: 50 | E147: 50 | F147: 50 | G147: 50 | H147: 50 | I147: 50 | J147: 50 | K147: 50 | L147: 50 | M147: 50 | N147: 50 | O147: 50 | P147: 50 | Q147: 50 | R147: 50 | S147: 50 | T147: 50 | U147: 50
B148: 375 | C148: 50 | D148: 50 | E148: 50 | F148: 50 | G148: 50 | H148: 50 | I148: 50 | J148: 50 | K148: 50 | L148: 50 | M148: 50 | N148: 50 | O148: 50 | P148: 50 | Q148: 50 | R148: 50 | S148: 50 | T148: 50 | U148: 50
B149: 450 | C149: 50 | D149: 50 | E149: 50 | F149: 50 | G149: 50 | H149: 50 | I149: 50 | J149: 50 | K149: 50 | L149: 50 | M149: 50 | N149: 50 | O149: 50 | P149: 50 | Q149: 50 | R149: 50 | S149: 50 | T149: 50 | U149: 50
B150: 525 | C150: 50 | D150: 50 | E150: 50 | F150: 50 | G150: 50 | H150: 50 | I150: 50 | J150: 50 | K150: 50 | L150: 50 | M150: 50 | N150: 50 | O150: 50 | P150: 50 | Q150: 50 | R150: 50 | S150: 50 | T150: 50 | U150: 50
B151: 600 | C151: 50 | D151: 50 | E151: 50 | F151: 50 | G151: 50 | H151: 50 | I151: 50 | J151: 50 | K151: 50 | L151: 50 | M151: 50 | N151: 50 | O151: 50 | P151: 50 | Q151: 50 | R151: 50 | S151: 50 | T151: 50 | U151: 50
B152: 675 | C152: 50 | D152: 50 | E152: 50 | F152: 50 | G152: 50 | H152: 50 | I152: 50 | J152: 50 | K152: 50 | L152: 50 | M152: 50 | N152: 50 | O152: 50 | P152: 50 | Q152: 50 | R152: 50 | S152: 50 | T152: 50 | U152: 50
B153: 750 | C153: 50 | D153: 50 | E153: 50 | F153: 50 | G153: 50 | H153: 50 | I153: 50 | J153: 50 | K153: 50 | L153: 50 | M153: 50 | N153: 50 | O153: 50 | P153: 50 | Q153: 50 | R153: 50 | S153: 50 | T153: 50 | U153: 50
B154: 825 | C154: 50 | D154: 50 | E154: 50 | F154: 50 | G154: 50 | H154: 50 | I154: 50 | J154: 50 | K154: 50 | L154: 50 | M154: 50 | N154: 50 | O154: 50 | P154: 50 | Q154: 50 | R154: 50 | S154: 50 | T154: 50 | U154: 50
B155: 881 | C155: 50 | D155: 50 | E155: 50 | F155: 50 | G155: 50 | H155: 50 | I155: 50 | J155: 50 | K155: 50 | L155: 50 | M155: 50 | N155: 50 | O155: 50 | P155: 50 | Q155: 50 | R155: 50 | S155: 50 | T155: 50 | U155: 50
B156: 949 | C156: 50 | D156: 50 | E156: 50 | F156: 50 | G156: 50 | H156: 50 | I156: 50 | J156: 50 | K156: 50 | L156: 50 | M156: 50 | N156: 50 | O156: 50 | P156: 50 | Q156: 50 | R156: 50 | S156: 50 | T156: 50 | U156: 50
A159: Copy new calculated timing table to MCC
B160: Injection Timing (NEW)
B161: Deg BTDC | C161: RPM
B162: Nm | C162: =C74 -> 600 | D162: 800 | E162: 900 | F162: 1000 | G162: 1100 | H162: 1200 | I162: 1300 | J162: 1400 | K162: 1500 | L162: 1600 | M162: 1700 | N162: 1800 | O162: 2000 | P162: 2200 | Q162: 2400 | R162: 2600 | S162: 2800 | T162: 3000 | U162: 3200
B163: =B75 -> -200 | C163: =C97*(C141/100) -> -5.738143841 | D163: -8.075880007 | E163: -8.377606201 | F163: -9.133696073 | G163: -9.870517552 | H163: -7.870366897 | I163: -7.086948516 | J163: -7.441741644 | K163: -9.604329996 | L163: -10.09395129 | M163: -10.60789662 | N163: -10.09439553 | O163: -10.98663819 | P163: -9.32706678 | Q163: -11.42188493 | R163: -9.580414162 | S163: -7.350706438 | T163: -3.033136001 | U163: 0
B164: -100 | C164: =C98*(C142/100) -> -1.147628768 | D164: -1.46834182 | E164: -1.523201127 | F164: -1.660672013 | G164: -1.645086259 | H164: -0.7870366897 | I164: -0.787438724 | J164: -0.8268601826 | K164: -0.8731209087 | L164: -0.9176319353 | M164: -0.9643542386 | N164: 0 | O164: 0 | P164: 1.165883347 | Q164: 1.269098325 | R164: 2.282480277 | S164: 2.621694978 | T164: 2.885281426 | U164: 3.082241847
B165: 0 | C165: =C99*(C143/100) -> 0.9777436953 | D165: 1.25704805 | E165: 1.394062503 | F165: 1.524883661 | G165: 1.674849982 | H165: 1.649273725 | I165: 1.831114406 | J165: 1.925922262 | K165: 2.12596309 | L165: 2.33039754 | M165: 2.437616959 | N165: 2.538918034 | O165: 2.803119972 | P165: 2.840357176 | Q165: 3.046170649 | R165: 3.336989463 | S165: 3.386684598 | T165: 3.788647172 | U165: 3.990563898
B166: 75 | C166: =C100*(C144/100) -> 1.258302536 | D166: 1.581418021 | E166: 1.766257595 | F166: 1.96709015 | G166: 2.096692042 | H166: 2.127533112 | I166: 2.322024939 | J166: 2.336591814 | K166: 2.425231672 | L166: 2.572476539 | M166: 2.689221697 | N166: 2.817385077 | O166: 3.177796729 | P166: 3.001084789 | Q166: 3.262616821 | R166: 3.818745395 | S166: 4.001196979 | T166: 4.387867818 | U166: 4.619217611
B167: 150 | C167: =C101*(C145/100) -> 1.53842434 | D167: 1.950439249 | E167: 2.114954467 | F167: 2.21798415 | G167: 2.351962142 | H167: 2.465632478 | I167: 2.564686383 | J167: 2.594509591 | K167: 2.704262838 | L167: 2.880332257 | M167: 3.150377677 | N167: 3.324918373 | O167: 3.54386638 | P167: 3.831293222 | Q167: 4.27059645 | R167: 4.552244163 | S167: 5.076131376 | T167: 5.215626036 | U167: 5.617502682
B168: 225 | C168: =C102*(C146/100) -> 1.498780319 | D168: 1.958197477 | E168: 2.111207917 | F168: 2.297881016 | G168: 2.472237912 | H168: 2.665955946 | I168: 2.761231599 | J168: 2.90661381 | K168: 2.932823527 | L168: 2.984949152 | M168: 3.260200629 | N168: 3.497945823 | O168: 3.900547656 | P168: 4.087591838 | Q168: 4.382186153 | R168: 4.744268877 | S168: 5.111743381 | T168: 5.420126844 | U168: 5.696920719
B169: 300 | C169: =C103*(C147/100) -> 1.410256766 | D169: 2.062697816 | E169: 2.239047328 | F169: 2.30729831 | G169: 2.574147263 | H169: 2.772253003 | I169: 2.948226984 | J169: 3.132647167 | K169: 3.226866425 | L169: 3.264869144 | M169: 3.493271466 | N169: 3.679792481 | O169: 3.850072907 | P169: 4.23895358 | Q169: 4.625378925 | R169: 4.91269801 | S169: 5.3145717 | T169: 5.708870826 | U169: 6.201924311
B170: 375 | C170: =C104*(C148/100) -> 1.785436897 | D170: 2.487103362 | E170: 2.651104309 | F170: 2.52193042 | G170: 2.769824439 | H170: 2.912002584 | I170: 3.165532631 | J170: 3.474729195 | K170: 3.701325037 | L170: 3.843880852 | M170: 3.979928591 | N170: 4.114593084 | O170: 4.353731785 | P170: 4.762434201 | Q170: 5.156955761 | R170: 5.366347825 | S170: 5.677208252 | T170: 6.196195551 | U170: 7.032335329
B171: 450 | C171: =C105*(C149/100) -> 2.278184649 | D171: 3.098259898 | E171: 3.268789845 | F171: 3.234388859 | G171: 3.439559687 | H171: 3.626329754 | I171: 3.86573733 | J171: 4.194611274 | K171: 4.347109172 | L171: 4.414690079 | M171: 4.51573329 | N171: 4.498653685 | O171: 4.963116002 | P171: 5.230325079 | Q171: 5.559005325 | R171: 6.215714565 | S171: 6.808597703 | T171: 7.294311377 | U171: 8.456047904
B172: 525 | C172: =C106*(C150/100) -> 3.427725987 | D172: 4.125184217 | E172: 4.087048886 | F172: 4.114590984 | G172: 4.119106901 | H172: 4.349816893 | I172: 4.537760242 | J172: 4.753972686 | K172: 4.888046709 | L172: 5.035435903 | M172: 5.153980353 | N172: 5.165400126 | O172: 5.623988745 | P172: 6.089240121 | Q172: 6.494742698 | R172: 7.359761475 | S172: 7.906340007 | T172: 8.700120639 | U172: 9.540663975
B173: 600 | C173: =C107*(C151/100) -> 5.497907931 | D173: 6.121715155 | E173: 5.325128353 | F173: 5.274925131 | G173: 4.973293889 | H173: 5.151209451 | I173: 5.175238707 | J173: 5.334669946 | K173: 5.532068055 | L173: 5.648595888 | M173: 5.817722829 | N173: 5.958255305 | O173: 6.383678001 | P173: 6.984442538 | Q173: 7.569342936 | R173: 8.29714252 | S173: 8.998209471 | T173: 10.13264238 | U173: 10.72989844
B174: 675 | C174: =C108*(C152/100) -> 6.919198866 | D174: 7.981236736 | E174: 7.02270807 | F174: 6.690358356 | G174: 5.869766019 | H174: 6.021073489 | I174: 5.932670396 | J174: 5.932548073 | K174: 6.194147835 | L174: 6.369440966 | M174: 6.568316408 | N174: 6.773773845 | O174: 7.242297712 | P174: 7.954127304 | Q174: 8.633363228 | R174: 9.297257473 | S174: 10.08435625 | T174: 11.45104671 | U174: 12.78903379
B175: 750 | C175: =C109*(C153/100) -> 8.367881194 | D175: 9.418697168 | E175: 8.549740607 | F175: 8.567169061 | G175: 6.956461162 | H175: 7.134373932 | I175: 6.81782768 | J175: 6.690997755 | K175: 6.822681953 | L175: 7.105771834 | M175: 7.391213909 | N175: 7.749946632 | O175: 8.126047081 | P175: 8.720543754 | Q175: 9.558626848 | R175: 10.46978618 | S175: 11.09138775 | T175: 13.04238647 | U175: 14.64346304
B176: 825 | C176: =C110*(C154/100) -> 9.816710932 | D176: 10.86740898 | E176: 9.844831631 | F176: 9.69321262 | G176: 7.917421952 | H176: 8.230086841 | I176: 7.711034281 | J176: 7.444164395 | K176: 7.52948332 | L176: 7.894442733 | M176: 8.197121554 | N176: 8.620603418 | O176: 9.178425699 | P176: 9.855911748 | Q176: 10.75190373 | R176: 11.64761428 | S176: 12.54358461 | T176: 13.7282466 | U176: 14.64346304
B177: 881 | C177: =C111*(C155/100) -> 10.90333324 | D177: 12.02647277 | E177: 10.84106024 | F177: 10.58434297 | G177: 8.534662513 | H177: 9.070734508 | I177: 8.345860569 | J177: 8.066949528 | K177: 8.115969693 | L177: 8.356651151 | M177: 8.690138175 | N177: 9.084386829 | O177: 9.773971915 | P177: 10.27935282 | Q177: 11.21383944 | R177: 12.64841202 | S177: 13.62136679 | T177: 15.89463161 | U177: 16.79998547
B178: 949 | C178: =C112*(C156/100) -> 12.27972149 | D178: 13.37871386 | E178: 11.93691171 | F178: 11.69847762 | G178: 9.286393266 | H178: 10.02264624 | I178: 9.166531661 | J178: 8.738659274 | K178: 8.631927226 | L178: 9.000641074 | M178: 9.537079398 | N178: 10.00755421 | O178: 10.57811015 | P178: 11.86820952 | Q178: 12.83142147 | R178: 13.7753474 | S178: 14.8349895 | T178: 17.05179344 | U178: 18.18857967
A181: Comparison of old and new timing tables
B182: Injection Timing Difference (New - Old)
B183: Deg BTDC | C183: RPM
B184: Nm | C184: =C74 -> 600 | D184: =D74 -> 800 | E184: 900 | F184: 1000 | G184: 1100 | H184: 1200 | I184: 1300 | J184: 1400 | K184: 1500 | L184: 1600 | M184: 1700 | N184: 1800 | O184: 2000 | P184: 2200 | Q184: 2400 | R184: 2600 | S184: 2800 | T184: 3000 | U184: 3200
B185: =B75 -> -200 | C185: =C163-C75 -> -6.738143841 | D185: -9.075880007 | E185: -9.377606201 | F185: -10.13369607 | G185: -10.87051755 | H185: -8.870366897 | I185: -8.086948516 | J185: -8.441741644 | K185: -10.60433 | L185: -11.09395129 | M185: -12.60789662 | N185: -13.09439553 | O185: -15.98663819 | P185: -14.32706678 | Q185: -16.42188493 | R185: -15.58041416 | S185: -14.35070644 | T185: -11.033136 | U185: -8
B186: =B76 -> -100 | C186: =C164-C76 -> -2.147628768 | D186: -2.46834182 | E186: -2.523201127 | F186: -2.660672013 | G186: -2.645086259 | H186: -1.78703669 | I186: -1.787438724 | J186: -1.826860183 | K186: -1.873120909 | L186: -1.917631935 | M186: -2.964354239 | N186: -3 | O186: -5 | P186: -3.834116653 | Q186: -3.730901675 | R186: -3.717519723 | S186: -4.378305022 | T186: -5.114718574 | U186: -4.917758153
B187: 0 | C187: =C165-C77 -> -0.02225630469 | D187: 0.2570480498 | E187: 0.3940625032 | F187: 0.5248836611 | G187: 0.6748499817 | H187: 0.6492737247 | I187: 0.8311144055 | J187: 0.9259222624 | K187: 1.12596309 | L187: 1.33039754 | M187: 0.4376169592 | N187: -0.461081966 | O187: -2.196880028 | P187: -2.159642824 | Q187: -1.953829351 | R187: -2.663010537 | S187: -3.613315402 | T187: -4.211352828 | U187: -4.009436102
B188: 75 | C188: =C166-C78 -> 0.258302536 | D188: 0.5814180211 | E188: 0.7662575954 | F188: 0.9670901501 | G188: 1.096692042 | H188: 1.607533112 | I188: 1.642024939 | J188: 2.166591814 | K188: 1.625231672 | L188: 1.572476539 | M188: 0.6892216971 | N188: 0.5373850774 | O188: -1.242203271 | P188: -1.058915211 | Q188: -1.737383179 | R188: -2.181254605 | S188: -2.998803021 | T188: -3.612132182 | U188: -3.380782389
B189: 150 | C189: =C167-C79 -> 0.5384243404 | D189: 0.9504392491 | E189: 1.114954467 | F189: 1.21798415 | G189: 1.351962142 | H189: 4.585632478 | I189: 4.344686383 | J189: 4.094509591 | K189: 3.624262838 | L189: 3.880332257 | M189: 4.150377677 | N189: 1.324918373 | O189: -0.3261336197 | P189: -0.1687067776 | Q189: -0.7294035503 | R189: -1.447755837 | S189: -1.923868624 | T189: -2.784373964 | U189: -2.382497318
B190: 225 | C190: =C168-C80 -> 1.218780319 | D190: 1.958197477 | E190: 2.111207917 | F190: 2.297881016 | G190: 2.472237912 | H190: 7.165955946 | I190: 6.661231599 | J190: 5.92661381 | K190: 5.672823527 | L190: 4.014949152 | M190: 3.700200629 | N190: 2.497945823 | O190: 1.560547656 | P190: 0.08759183836 | Q190: -0.6178138467 | R190: -1.255731123 | S190: -1.888256619 | T190: -2.579873156 | U190: -2.303079281
B191: 300 | C191: =C169-C81 -> 2.600256766 | D191: 4.062697816 | E191: 3.279047328 | F191: 3.41729831 | G191: 3.624147263 | H191: 4.272253003 | I191: 4.008226984 | J191: 4.132647167 | K191: 3.806866425 | L191: 3.264869144 | M191: 3.493271466 | N191: 3.679792481 | O191: 2.850072907 | P191: 0.2389535802 | Q191: -0.3746210752 | R191: -1.08730199 | S191: -1.6854283 | T191: -2.291129174 | U191: -1.798075689
B192: 375 | C192: =C170-C82 -> 3.785436897 | D192: 4.487103362 | E192: 4.481104309 | F192: 4.42193042 | G192: 4.229824439 | H192: 4.412002584 | I192: 4.585532631 | J192: 4.474729195 | K192: 4.631325037 | L192: 3.843880852 | M192: 3.979928591 | N192: 4.114593084 | O192: 3.353731785 | P192: 0.7624342015 | Q192: 0.1569557608 | R192: -0.6336521753 | S192: -1.322791748 | T192: -2.173804449 | U192: -1.877664671
B193: 450 | C193: =C171-C83 -> 4.278184649 | D193: 5.098259898 | E193: 5.268789845 | F193: 5.234388859 | G193: 5.179559687 | H193: 5.126329754 | I193: 5.36573733 | J193: 5.194611274 | K193: 5.347109172 | L193: 4.414690079 | M193: 4.51573329 | N193: 4.498653685 | O193: 3.963116002 | P193: 1.520325079 | Q193: 0.5290053248 | R193: -0.1442854347 | S193: -1.261402297 | T193: -2.715688623 | U193: -2.123952096
B194: 525 | C194: =C172-C84 -> 5.427725987 | D194: 6.125184217 | E194: 6.087048886 | F194: 6.114590984 | G194: 6.119106901 | H194: 5.849816893 | I194: 6.037760242 | J194: 5.753972686 | K194: 5.888046709 | L194: 5.035435903 | M194: 5.153980353 | N194: 5.165400126 | O194: 4.623988745 | P194: 2.979240121 | Q194: 1.394742698 | R194: 0.6297614746 | S194: -1.203659993 | T194: -2.999879361 | U194: -2.659336025
B195: 600 | C195: =C173-C85 -> 8.957907931 | D195: 8.121715155 | E195: 7.325128353 | F195: 7.274925131 | G195: 6.973293889 | H195: 6.651209451 | I195: 6.675238707 | J195: 6.334669946 | K195: 6.532068055 | L195: 6.138595888 | M195: 5.817722829 | N195: 5.958255305 | O195: 5.383678001 | P195: 3.984442538 | Q195: 2.369342936 | R195: 1.18714252 | S195: -1.101790529 | T195: -3.227357618 | U195: -3.420101556
B196: 675 | C196: =C174-C86 -> 11.51919887 | D196: 11.91123674 | E196: 10.43270807 | F196: 9.310358356 | G196: 7.979766019 | H196: 7.521073489 | I196: 7.432670396 | J196: 6.932548073 | K196: 7.194147835 | L196: 7.349440966 | M196: 6.568316408 | N196: 6.773773845 | O196: 6.272297712 | P196: 4.974127304 | Q196: 3.333363228 | R196: 1.737257473 | S196: -1.285643754 | T196: -4.568953289 | U196: -4.440966208
B197: 750 | C197: =C175-C87 -> 12.96788119 | D197: 14.01869717 | E197: 13.04974061 | F197: 12.88716906 | G197: 10.65646116 | H197: 10.34437393 | I197: 9.73782768 | J197: 9.260997755 | K197: 9.302681953 | L197: 9.835771834 | M197: 9.021213909 | N197: 8.819946632 | O197: 7.596047081 | P197: 6.220543754 | Q197: 4.258626848 | R197: 2.269786179 | S197: -2.178612253 | T197: -5.547613525 | U197: -4.456536963
B198: 825 | C198: =C176-C88 -> 14.41671093 | D198: 15.46740898 | E198: 14.34483163 | F198: 14.09321262 | G198: 12.21742195 | H198: 12.43008684 | I198: 11.81103428 | J198: 11.3441644 | K198: 11.42948332 | L198: 11.69444273 | M198: 11.09712155 | N198: 10.42060342 | O198: 8.978425699 | P198: 7.755911748 | Q198: 5.451903725 | R198: 3.047614283 | S198: -1.956415387 | T198: -5.371753403 | U198: -4.456536963
B199: 881 | C199: =C177-C89 -> 15.50333324 | D199: 16.62647277 | E199: 15.34106024 | F199: 14.98434297 | G199: 12.83466251 | H199: 13.27073451 | I199: 12.44586057 | J199: 11.96694953 | K199: 12.01596969 | L199: 12.15665115 | M199: 11.59013817 | N199: 10.88438683 | O199: 9.573971915 | P199: 8.179352818 | Q199: 5.913839438 | R199: 4.048412019 | S199: -0.8786332102 | T199: -3.205368389 | U199: -2.300014526
B200: 949 | C200: =C178-C90 -> 16.87972149 | D200: 17.97871386 | E200: 16.43691171 | F200: 16.09847762 | G200: 13.58639327 | H200: 14.22264624 | I200: 13.26653166 | J200: 12.63865927 | K200: 12.53192723 | L200: 12.80064107 | M200: 12.4370794 | N200: 11.80755421 | O200: 10.37811015 | P200: 9.768209516 | Q200: 7.531421471 | R200: 5.175347396 | S200: 0.3349895034 | T200: -2.048206561 | U200: -0.9114203321
